bitfinex/quotes_BTCUSD_20250110
["timestamp","ask_amount","ask_price","bid_price","bid_amount"]
[1736529812238,0.212345,94186.0,94181.0,0.00148486]
[1736529812239,0.424691,94186.0,94181.0,0.00148486]
[1736529812451,0.212266,94222.0,94182.0,0.31665376]
[1736529812659,0.10429976,94220.0,94191.0,0.212332]
[1736529812911,0.212312,94201.0,94191.0,0.212332]
[1736529813121,0.212312,94201.0,94188.0,0.21234]
[1736529813351,0.212312,94201.0,94192.0,0.21233]
[1736529813557,0.15,94219.0,94182.0,0.12515283]
[1736529813558,0.212314,94200.0,94182.0,0.10429976]
[1736529813741,0.212314,94200.0,94187.0,0.212341]
[1736529814005,0.212324,94196.0,94187.0,0.31664076]
[1736529814209,0.212314,94200.0,94182.0,0.212354]
[1736529814384,0.424652,94195.0,94182.0,0.212354]
[1736529814593,0.212313,94201.0,94191.0,0.006]
[1736529815503,0.1,94235.0,94192.0,0.18669976]
[1736529815707,0.212255,94227.0,94213.0,0.212284]
[1736529815906,0.212255,94227.0,94193.0,0.049]
[1736529815907,0.212262,94224.0,94204.0,0.212303]
[1736529816110,0.212255,94227.0,94193.0,0.049]
[1736529816111,0.212263,94223.0,94206.0,0.2123]
[1736529816314,0.212263,94223.0,94210.0,0.212291]
[1736529816529,0.212269,94220.0,94210.0,0.212291]
[1736529816902,0.212269,94220.0,94207.0,0.212298]
[1736529816903,0.21241426,94220.0,94207.0,0.212298]
[1736529817103,0.212271,94219.0,94207.0,0.212298]
[1736529817304,0.212282,94214.0,94203.0,0.212306]
[1736529817524,0.212292,94210.0,94198.0,0.212316]
[1736529817897,0.212292,94210.0,94198.0,0.424634]
[1736529818113,0.00257196,94209.0,94202.0,0.212308]
[1736529818334,0.212283,94214.0,94202.0,0.212308]
[1736529818529,0.212283,94214.0,94200.0,0.212312]
[1736529818857,0.212291,94211.0,94200.0,0.212312]
[1736529819072,0.212291,94211.0,94204.0,0.001]
[1736529819238,0.00252518,94210.0,94204.0,0.001]
[1736529819446,0.00252518,94210.0,94200.0,0.212312]
[1736529819651,0.00252518,94210.0,94202.0,0.007]
[1736529819854,0.212293,94209.0,94200.0,0.212312]
[1736529820072,0.00252518,94210.0,94204.0,0.212304]
[1736529820217,0.00254448,94209.0,94205.0,0.10429976]
[1736529820423,0.212273,94219.0,94205.0,0.10429976]
[1736529820672,0.00014526,94220.0,94208.0,0.212296]
[1736529820879,0.212271,94219.0,94205.0,0.10429976]
[1736529821088,0.00014526,94220.0,94200.0,0.002]
[1736529821297,0.023,94218.0,94200.0,0.002]
[1736529821625,0.212308,94203.0,94200.0,0.002]
[1736529821831,0.424616,94203.0,94200.0,0.002]
[1736529821983,0.212301,94206.0,94179.0,0.00868]
[1736529822221,0.15,94205.0,94178.0,0.1236]
[1736529822434,0.31660476,94204.0,94178.0,0.0478]
[1736529822686,0.31660476,94204.0,94166.0,0.08828]
[1736529822687,0.173,94203.0,94166.0,0.08828]
[1736529822908,0.173,94203.0,94167.0,0.212388]
[1736529822909,0.212357,94181.0,94167.0,0.212388]
[1736529823116,0.212357,94181.0,94167.0,0.424776]
[1736529823340,8.51e-05,94221.0,94172.0,0.1]
[1736529823547,0.212279,94216.0,94181.0,0.10429976]
[1736529823723,0.2123531,94221.0,94208.0,0.212294]
[1736529824169,0.21249836,94221.0,94210.0,0.212291]
[1736529825257,0.00023036,94221.0,94211.0,0.212289]
[1736529825472,0.21249736,94221.0,94211.0,0.212289]
[1736529825862,0.00023036,94221.0,94211.0,0.212289]
[1736529826089,0.21482025,94221.0,94211.0,0.212289]
[1736529826642,0.21482025,94221.0,94211.0,0.213289]
[1736529826853,0.42708825,94221.0,94211.0,0.008]
[1736529827053,0.00255225,94221.0,94211.0,0.008]
[1736529827251,0.00023036,94221.0,94211.0,0.008]
[1736529827453,0.212276,94217.0,94211.0,0.008]
[1736529828137,0.00232189,94217.0,94211.0,0.008]
[1736529828411,0.212271,94219.0,94211.0,0.008]
[1736529828585,0.212286,94213.0,94211.0,0.001]
[1736529828973,0.212286,94213.0,94211.0,0.01]
[1736529829188,0.212286,94213.0,94205.0,0.0491]
[1736529829397,0.424572,94213.0,94205.0,0.0491]
[1736529829599,0.424572,94213.0,94211.0,0.007]
[1736529829800,0.424572,94213.0,94211.0,0.002]
[1736529829801,0.27964845,94212.0,94211.0,0.002]
[1736529830031,0.212341,94189.0,94179.0,0.21236]
[1736529830433,0.00232259,94188.0,94179.0,0.21236]
[1736529830774,0.21466459,94188.0,94174.0,0.212371]
[1736529830952,0.21466459,94188.0,94176.0,0.212368]
[1736529831158,0.00232259,94188.0,94179.0,0.214361]
[1736529831363,0.00232259,94188.0,94184.0,0.212348]
[1736529831600,0.212326,94195.0,94184.0,0.212348]
[1736529831812,0.15,94212.0,94185.0,0.31664776]
[1736529832017,0.212317,94199.0,94186.0,0.212345]
[1736529832229,0.212317,94199.0,94189.0,0.212336]
[1736529832416,0.212318,94198.0,94189.0,0.212336]
[1736529833031,0.16047359,94212.0,94193.0,0.212328]
[1736529833234,0.14110289,94240.0,94205.0,0.212302]
[1736529833417,0.212277,94217.0,94205.0,0.212302]
[1736529834193,0.212269,94220.0,94209.0,0.212293]
[1736529834381,0.212277,94217.0,94205.0,0.212302]
[1736529835205,0.00014526,94220.0,94206.0,0.11297976]
[1736529835421,0.00014526,94220.0,94219.0,0.335371]
[1736529835626,0.00014526,94220.0,94219.0,0.43967076]
[1736529836034,0.00014526,94220.0,94219.0,1.94835076]
[1736529838177,0.00014526,94220.0,94219.0,1.95893889]
[1736529838544,0.00014526,94220.0,94219.0,1.96793889]
[1736529838743,8.5e-05,94260.0,94249.0,0.212203]
[1736529838942,0.00023053,94250.0,94249.0,0.212203]
[1736529839569,0.00023053,94250.0,94249.0,1.712203]
[1736529840307,0.00023053,94250.0,94249.0,0.32550276]
[1736529841302,0.00023053,94250.0,94249.0,0.32850276]
[1736529841642,0.00023053,94250.0,94249.0,0.37490276]
[1736529844085,0.00023053,94250.0,94249.0,0.16269976]
[1736529844318,0.00023053,94250.0,94249.0,0.012]
[1736529844319,0.21243153,94250.0,94249.0,0.012]
[1736529844542,0.00023053,94250.0,94249.0,0.012]
[1736529845390,0.00023053,94250.0,94249.0,0.009]
[1736529845592,0.00023053,94250.0,94244.0,0.212214]
[1736529845790,0.00023053,94250.0,94244.0,0.52872876]
[1736529846037,0.00023053,94250.0,94249.0,0.009]
[1736529846244,0.00023053,94250.0,94244.0,0.31651376]
[1736529846665,0.00023053,94250.0,94249.0,0.009]
[1736529847061,0.00023053,94250.0,94244.0,0.31651376]
[1736529847258,0.00023053,94250.0,94249.0,0.009]
[1736529847703,0.00023053,94250.0,94245.0,0.212212]
[1736529848117,0.00023053,94250.0,94246.0,0.424418]
[1736529848321,0.00023053,94250.0,94248.0,0.212206]
[1736529848522,0.00023053,94250.0,94249.0,0.10429976]
[1736529848887,0.00023053,94250.0,94249.0,1.60429976]
[1736529849106,0.00023053,94250.0,94249.0,1.61429976]
[1736529849492,0.00023053,94250.0,94249.0,1.60529976]
[1736529849746,0.00023053,94250.0,94249.0,1.61429976]
[1736529850384,0.00023053,94250.0,94249.0,0.11329976]
[1736529850794,0.00023053,94250.0,94249.0,0.11529976]
[1736529851402,0.00023053,94250.0,94249.0,0.13648256]
[1736529851969,0.00023053,94250.0,94249.0,0.11529976]
[1736529852375,0.00023053,94250.0,94249.0,0.12397976]
[1736529853639,0.00023053,94250.0,94249.0,0.12504065]
[1736529853835,0.00023053,94250.0,94249.0,0.24804065]
[1736529854034,0.00023053,94250.0,94249.0,0.24697976]
[1736529855427,0.00023053,94250.0,94249.0,0.24497976]
[1736529855631,0.00023053,94250.0,94249.0,1.74497976]
[1736529855835,0.00023053,94250.0,94249.0,1.73597976]
[1736529856035,0.00023053,94250.0,94249.0,1.74497976]
[1736529856457,0.00023053,94250.0,94249.0,0.24497976]
[1736529856628,0.00023053,94250.0,94249.0,0.25572167]
[1736529856836,0.00023053,94250.0,94249.0,1.75172167]
[1736529857003,0.00023053,94250.0,94249.0,0.16674167]
[1736529857216,0.00023053,94250.0,94249.0,0.17942167]
[1736529857595,0.00023053,94250.0,94249.0,0.17642167]
[1736529857792,0.00023053,94250.0,94249.0,0.1774825]
[1736529858346,0.00023053,94250.0,94249.0,0.1714825]
[1736529858552,0.00023053,94250.0,94249.0,0.1764825]
[1736529858997,0.00023053,94250.0,94249.0,0.18442167]
[1736529859206,0.00023053,94250.0,94249.0,0.17367976]
[1736529859350,0.00023053,94250.0,94249.0,1.67367976]
[1736529859571,0.00023053,94250.0,94249.0,0.17367976]
[1736529859770,0.00023053,94250.0,94249.0,0.11829976]
[1736529860024,0.00023053,94250.0,94249.0,0.014]
[1736529860794,0.00023053,94250.0,94242.0,0.212217]
[1736529861031,0.00023053,94250.0,94243.0,0.212216]
[1736529861235,0.00023053,94250.0,94249.0,0.002]
[1736529861748,0.00023053,94250.0,94243.0,0.212215]
[1736529861949,0.00023053,94250.0,94244.0,0.10429976]
[1736529862153,0.00023053,94250.0,94236.0,0.212233]
[1736529862154,0.212211,94246.0,94236.0,0.212233]
[1736529862356,0.00023053,94250.0,94237.0,0.00868]
[1736529862511,0.21243353,94250.0,94237.0,0.00868]
[1736529862712,0.21243353,94250.0,94232.0,0.00868]
[1736529863008,0.212215,94244.0,94243.0,0.009]
[1736529863274,0.212215,94244.0,94242.0,0.002]
[1736529863825,0.212228,94238.0,94237.0,0.009]
[1736529864026,0.21225,94229.0,94217.0,0.00868]
[1736529864231,0.21225,94229.0,94219.0,0.07003065]
[1736529864651,0.212243,94232.0,94219.0,0.28230065]
[1736529864859,0.00023053,94250.0,94220.0,0.10429976]
[1736529865082,0.00023053,94250.0,94220.0,0.10536105]
[1736529865289,0.212215,94244.0,94242.0,0.003]
[1736529865900,0.212206,94248.0,94242.0,0.003]
[1736529866081,0.212217,94243.0,94242.0,0.004]
[1736529866209,0.212217,94243.0,94242.0,0.003]
[1736529866624,0.212217,94243.0,94242.0,0.007]
[1736529866864,0.00023053,94250.0,94223.0,0.212261]
[1736529867039,0.10429976,94249.0,94223.0,0.212261]
[1736529867238,0.212223,94241.0,94223.0,0.424522]
[1736529867447,0.212221,94242.0,94231.0,0.212243]
[1736529868353,0.212214,94245.0,94231.0,0.212243]
[1736529868607,0.21243353,94250.0,94232.0,0.10429976]
[1736529868846,0.212211,94246.0,94232.0,1.60429976]
[1736529869312,0.21243353,94250.0,94238.0,0.212227]
[1736529869551,0.21243253,94250.0,94234.0,0.212237]
[1736529869807,0.21243253,94250.0,94239.0,0.212225]
[1736529870292,0.21221,94246.0,94235.0,0.212235]
[1736529870777,0.00023053,94250.0,94234.0,0.004]
[1736529871257,0.00023053,94250.0,94231.0,0.001]
[1736529871509,0.424444,94241.0,94225.0,0.01058346]
[1736529871756,0.424444,94241.0,94229.0,0.10429976]
[1736529872004,0.21223,94238.0,94226.0,0.00868]
[1736529872204,0.00023053,94250.0,94235.0,0.001]
[1736529872427,0.212233,94236.0,94235.0,0.001]
[1736529873587,0.212233,94236.0,94138.0,0.02737974]
[1736529873588,0.212233,94236.0,94211.0,0.02096495]
[1736529873813,0.212262,94223.0,94211.0,0.02096495]
[1736529874041,0.212246,94230.0,94229.0,0.002]
[1736529874422,0.212246,94230.0,94206.0,0.00868]
[1736529874423,0.212274,94218.0,94206.0,0.00868]
[1736529874626,0.212221,94241.0,94206.0,0.00868]
[1736529874627,0.212245,94231.0,94206.0,0.10429976]
[1736529874881,0.023,94239.0,94206.0,0.10429976]
[1736529875041,0.212278,94216.0,94204.0,0.02073118]
[1736529875242,0.21228,94215.0,94204.0,0.23303518]
[1736529875440,0.173,94237.0,94204.0,0.23303518]
[1736529875644,0.15,94235.0,94205.0,0.212302]
[1736529875845,0.15,94235.0,94204.0,0.02087644]
[1736529875846,0.212281,94215.0,94204.0,0.02087644]
[1736529876036,0.212291,94211.0,94204.0,0.02087644]
[1736529876235,0.212291,94211.0,94204.0,0.00014526]
[1736529876792,0.023,94231.0,94204.0,0.21444926]
[1736529876933,0.212282,94215.0,94205.0,0.212302]
[1736529877138,0.212282,94215.0,94204.0,0.00014526]
[1736529877340,0.0104093,94232.0,94206.0,0.002]
[1736529877548,0.424546,94218.0,94206.0,0.10629976]
[1736529877751,0.212273,94218.0,94206.0,0.31859976]
[1736529877950,0.212268,94221.0,94207.0,0.212298]
[1736529878759,0.212276,94217.0,94207.0,0.212298]
[1736529878932,0.212276,94217.0,94208.0,1.5]
[1736529879133,0.212269,94220.0,94208.0,1.5]
[1736529879572,0.212269,94220.0,94209.0,0.212293]
[1736529881460,0.21226,94225.0,94209.0,0.212293]
[1736529881667,0.21226,94225.0,94214.0,0.212281]
[1736529882184,0.21226,94225.0,94210.0,0.212291]
[1736529882414,0.21226,94225.0,94211.0,0.10429976]
[1736529882542,0.21226,94225.0,94217.0,0.212275]
[1736529882744,0.21226,94225.0,94218.0,1.5]
[1736529883149,0.212226,94240.0,94227.0,0.212251]
[1736529883405,0.212188,94256.0,94230.0,0.212244]
[1736529883707,0.212218,94243.0,94230.0,0.212244]
[1736529884049,0.424436,94243.0,94230.0,0.212244]
[1736529884261,0.212227,94239.0,94230.0,0.212244]
[1736529884880,0.212218,94243.0,94230.0,0.217244]
[1736529885080,0.212214,94245.0,94234.0,0.212237]
[1736529885498,0.01057892,94250.0,94234.0,0.10429976]
[1736529885701,8.53e-05,94250.0,94238.0,0.212228]
[1736529886034,8.53e-05,94250.0,94241.0,0.21222]
[1736529886239,8.53e-05,94250.0,94245.0,0.212211]
[1736529886399,0.00023053,94250.0,94241.0,0.21222]
[1736529887544,0.00023053,94250.0,94245.0,0.002]
[1736529888485,0.00023053,94250.0,94241.0,0.21222]
[1736529888678,0.00023053,94250.0,94245.0,0.212212]
[1736529888944,0.00023053,94250.0,94245.0,0.001]
[1736529889367,0.00023053,94250.0,94246.0,0.424419]
[1736529889684,0.00023053,94250.0,94248.0,0.212206]
[1736529889884,0.00023053,94250.0,94249.0,0.10429976]
[1736529890039,0.00023053,94250.0,94249.0,1.60536067]
[1736529890246,0.00023053,94250.0,94249.0,1.60429976]
[1736529890760,0.01362393,94258.0,94249.0,1.60429976]
[1736529891008,0.01362393,94258.0,94249.0,1.62579979]
[1736529891209,0.01362393,94258.0,94257.0,0.212185]
[1736529891416,0.01362393,94258.0,94257.0,0.31648476]
[1736529892609,0.01362393,94258.0,94257.0,0.31948476]
[1736529892966,0.01362393,94258.0,94257.0,0.36518476]
[1736529893801,0.00189014,94258.0,94257.0,0.44418476]
[1736529894012,8.53e-05,94316.0,94274.0,0.1]
[1736529894239,0.00030053,94288.0,94287.0,0.212118]
[1736529894465,0.00014523,94288.0,94287.0,1.82509776]
[1736529894667,0.00014523,94288.0,94287.0,1.81641776]
[1736529894892,0.00014523,94288.0,94287.0,1.82509776]
[1736529895069,0.00014523,94288.0,94287.0,1.8461473]
[1736529895678,0.00014523,94288.0,94287.0,1.85665632]
[1736529896094,0.00014523,94288.0,94287.0,1.86265632]
[1736529896445,0.00014523,94288.0,94287.0,1.87165632]
[1736529896851,0.00014523,94288.0,94287.0,1.86265632]
[1736529897036,0.00014523,94288.0,94287.0,1.87165632]
[1736529897455,0.00014523,94288.0,94287.0,1.86265632]
[1736529897653,0.00014523,94288.0,94287.0,1.86565632]
[1736529898044,0.00014523,94288.0,94287.0,0.37265632]
[1736529898492,0.00014523,94288.0,94287.0,0.35665632]
[1736529898663,0.00014523,94288.0,94287.0,0.36265632]
[1736529899269,0.00014523,94288.0,94287.0,1.86265632]
[1736529899500,5.221e-05,94288.0,94287.0,1.86265632]
[1736529899654,5.221e-05,94288.0,94287.0,1.85665632]
[1736529900061,5.221e-05,94288.0,94287.0,1.86565632]
[1736529900292,5.221e-05,94288.0,94287.0,1.85665632]
[1736529900674,5.221e-05,94288.0,94287.0,1.86565632]
[1736529900875,5.221e-05,94288.0,94287.0,1.85665632]
[1736529901055,8.53e-05,94316.0,94288.0,0.15]
[1736529901283,0.0005692,94316.0,94310.0,0.212066]
[1736529901483,0.0005692,94316.0,94312.0,0.0759]
[1736529901688,0.0005692,94316.0,94313.0,1.60429976]
[1736529901946,0.0005692,94316.0,94314.0,0.02152261]
[1736529902068,0.0005692,94316.0,94315.0,0.10429976]
[1736529902661,0.0005692,94316.0,94315.0,1.60429976]
[1736529902867,0.0005692,94316.0,94315.0,0.00868]
[1736529903721,0.0005692,94316.0,94315.0,0.01168]
[1736529904160,0.0005692,94316.0,94315.0,0.00868]
[1736529904367,0.0005692,94316.0,94315.0,0.00968]
[1736529904778,0.0005692,94316.0,94315.0,0.11397976]
[1736529905595,0.0005692,94316.0,94315.0,1.61397976]
[1736529905750,0.0005692,94316.0,94315.0,0.11897976]
[1736529906156,0.0005692,94316.0,94315.0,0.11397976]
[1736529906503,0.0005692,94316.0,94315.0,0.01]
[1736529906725,0.0005692,94316.0,94315.0,0.009]
[1736529907620,0.0005692,94316.0,94315.0,0.012]
[1736529907822,0.0005692,94316.0,94315.0,0.003]
[1736529908036,0.0005692,94316.0,94315.0,0.10729976]
[1736529908337,0.0005692,94316.0,94315.0,0.11629976]
[1736529908955,0.0005692,94316.0,94315.0,0.11329976]
[1736529909180,0.0005692,94316.0,94315.0,0.17106915]
[1736529909382,0.0005692,94316.0,94315.0,0.17406915]
[1736529910624,0.0005692,94316.0,94315.0,1.75492925]
[1736529910704,0.0005692,94316.0,94315.0,1.75192925]
[1736529910881,0.0005692,94316.0,94315.0,1.75386915]
[1736529911093,0.0005692,94316.0,94315.0,1.84486841]
[1736529911499,8.52e-05,94326.0,94325.0,0.212032]
[1736529911695,0.00023031,94326.0,94325.0,0.31633176]
[1736529912697,0.00023031,94326.0,94325.0,0.32533176]
[1736529912891,0.00023031,94326.0,94325.0,0.32493176]
[1736529913889,0.02664501,94354.0,94325.0,0.11329976]
[1736529914159,8.52e-05,94354.0,94326.0,0.10535967]
[1736529914979,0.2120542,94354.0,94344.0,0.211989]
[1736529915299,0.2120542,94354.0,94342.0,0.00868]
[1736529915513,0.2120542,94354.0,94343.0,1.60429976]
[1736529915713,0.2120542,94354.0,94344.0,0.21199]
[1736529916170,0.2120542,94354.0,94345.0,0.10429976]
[1736529916778,0.05,94349.0,94345.0,0.10429976]
[1736529918278,0.05,94349.0,94345.0,0.11029976]
[1736529918878,0.05,94349.0,94345.0,0.10904976]
[1736529919507,0.211981,94348.0,94345.0,0.007]
[1736529919714,0.211985,94346.0,94345.0,0.007]
[1736529919893,0.33928476,94346.0,94345.0,0.007]
[1736529920599,0.33928476,94346.0,94345.0,0.006]
[1736529921199,0.21204,94322.0,94318.0,0.00868]
[1736529921845,0.212023,94330.0,94319.0,0.31634576]
[1736529922261,0.21203,94327.0,94319.0,0.10429976]
[1736529922477,0.0105784,94348.0,94320.0,0.0777]
[1736529922699,0.211972,94352.0,94328.0,0.212024]
[1736529922922,0.211972,94352.0,94329.0,0.11297976]
[1736529923170,0.211964,94356.0,94342.0,0.211992]
[1736529923776,0.01062394,94361.0,94329.0,0.10429976]
[1736529924003,0.01062394,94361.0,94334.0,0.212012]
[1736529924004,0.211976,94350.0,94334.0,0.212012]
[1736529924213,0.211981,94348.0,94334.0,0.212012]
[1736529924370,0.211981,94348.0,94333.0,0.00868]
[1736529924553,0.211981,94348.0,94334.0,0.212012]
[1736529924756,0.211976,94350.0,94334.0,0.212012]
[1736529924968,0.211981,94348.0,94334.0,0.212012]
[1736529925245,0.211981,94348.0,94334.0,0.216012]
[1736529925416,0.211981,94348.0,94334.0,0.212012]
[1736529925821,0.211981,94348.0,94334.0,0.216012]
[1736529926644,0.211996,94342.0,94334.0,0.004]
[1736529926852,0.2120532,94354.0,94334.0,0.004]
[1736529927023,0.212006,94337.0,94334.0,0.004]
[1736529927221,0.424012,94337.0,94334.0,0.004]
[1736529927488,0.212,94340.0,94334.0,0.004]
[1736529927818,0.05,94349.0,94341.0,0.211995]
[1736529928001,0.15,94348.0,94334.0,0.007]
[1736529928223,0.212006,94337.0,94334.0,0.007]
[1736529928365,0.212024,94329.0,94312.0,0.00868]
[1736529928567,0.212024,94329.0,94316.0,0.03247132]
[1736529928772,0.212024,94329.0,94313.0,0.212058]
[1736529928973,0.0788,94343.0,94312.0,0.02116457]
[1736529929155,0.15,94338.0,94315.0,0.00014511]
[1736529929360,0.21201,94335.0,94315.0,0.00014511]
[1736529929555,0.212045,94320.0,94315.0,0.00014511]
[1736529929811,0.212037,94323.0,94315.0,0.00014511]
[1736529930014,0.212018,94332.0,94315.0,0.00214511]
[1736529930170,0.211994,94342.0,94315.0,0.00214511]
[1736529930171,0.212031,94326.0,94315.0,0.00214511]
[1736529930609,0.212039,94323.0,94315.0,0.00014511]
[1736529930830,0.212021,94330.0,94315.0,0.00014511]
[1736529931033,0.212021,94330.0,94316.0,0.03247903]
[1736529931234,0.212015,94333.0,94318.0,0.212047]
[1736529931434,0.15,94348.0,94319.0,0.10429976]
[1736529931694,0.211994,94342.0,94315.0,0.01014511]
[1736529931896,0.212032,94326.0,94315.0,0.10744487]
[1736529932317,0.212032,94326.0,94316.0,0.005]
[1736529932523,0.212032,94326.0,94315.0,0.10744487]
[1736529932715,0.211994,94342.0,94315.0,0.00314511]
[1736529932928,0.10429976,94342.0,94315.0,0.00014511]
[1736529933238,0.212052,94317.0,94315.0,0.00214511]
[1736529933676,0.212052,94317.0,94315.0,0.00014511]
[1736529934508,0.212049,94318.0,94315.0,0.00014511]
[1736529934713,0.01059749,94333.0,94316.0,0.007]
[1736529934915,0.01059749,94333.0,94315.0,0.10644487]
[1736529935128,0.0788,94343.0,94315.0,0.10644487]
[1736529935355,0.2000852,94354.0,94316.0,0.10429976]
[1736529935356,0.0756852,94354.0,94316.0,0.10429976]
[1736529935578,0.211994,94342.0,94322.0,0.212038]
[1736529935830,0.15429976,94349.0,94316.0,0.10429976]
[1736529936031,0.212026,94328.0,94317.0,0.01948272]
[1736529936657,0.212035,94324.0,94317.0,0.01948272]
[1736529936864,0.173,94344.0,94317.0,0.01948272]
[1736529937072,0.212036,94324.0,94317.0,0.01948272]
[1736529937281,0.212036,94324.0,94318.0,0.01948272]
[1736529937282,0.212044,94320.0,94318.0,0.01948272]
[1736529938590,0.424088,94320.0,94317.0,0.001]
[1736529938748,0.424088,94320.0,94318.0,0.007]
[1736529938949,0.15,94319.0,94318.0,0.007]
[1736529939168,0.212048,94318.0,94317.0,0.001]
[1736529939592,0.212048,94318.0,94315.0,0.00014511]
[1736529941004,0.424097,94318.0,94315.0,0.00014511]
[1736529941557,0.424097,94318.0,94315.0,0.00114511]
[1736529941796,0.212036,94324.0,94315.0,0.00114511]
[1736529942000,0.01042285,94333.0,94315.0,0.00114511]
[1736529942208,0.212023,94329.0,94315.0,0.21319911]
[1736529942334,0.01036775,94343.0,94315.0,0.00114511]
[1736529942549,0.212042,94321.0,94318.0,0.005]
[1736529942940,0.212042,94321.0,94315.0,0.00014511]
[1736529943361,0.212042,94321.0,94315.0,0.00214511]
[1736529943572,0.212034,94325.0,94315.0,0.00214511]
[1736529943767,0.21205,94318.0,94315.0,0.00014511]
[1736529944219,0.212046,94319.0,94315.0,0.00014511]
[1736529944559,0.212042,94321.0,94318.0,0.003]
[1736529945931,0.212034,94325.0,94318.0,0.003]
[1736529946296,0.212041,94322.0,94318.0,0.003]
[1736529947203,0.212041,94322.0,94315.0,0.00014511]
[1736529947406,0.21205,94318.0,94315.0,0.00014511]
[1736529947789,0.212035,94324.0,94315.0,0.00014511]
[1736529948204,0.01085235,94359.0,94317.0,0.0804]
[1736529948463,0.21196,94357.0,94318.0,0.10535995]
[1736529948664,0.10429976,94356.0,94333.0,0.02093426]
[1736529948871,0.211987,94345.0,94333.0,0.02093426]
[1736529949080,0.211986,94346.0,94332.0,0.212015]
[1736529949308,0.023,94363.0,94332.0,0.212015]
[1736529949504,0.211978,94350.0,94332.0,0.212015]
[1736529949712,0.211978,94350.0,94336.0,0.212007]
[1736529949910,0.211961,94357.0,94339.0,0.212]
[1736529950555,0.211973,94352.0,94333.0,0.212014]
[1736529951371,0.023,94361.0,94334.0,0.212012]
[1736529951577,0.211974,94351.0,94334.0,0.212012]
[1736529952132,0.211974,94351.0,94332.0,0.0754]
[1736529952335,0.211985,94347.0,94333.0,0.001]
[1736529952614,0.211985,94346.0,94333.0,0.001]
[1736529952735,0.211995,94342.0,94333.0,0.001]
[1736529953767,0.211995,94342.0,94324.0,0.212032]
[1736529953961,0.211995,94342.0,94334.0,0.002]
[1736529954489,0.211974,94351.0,94333.0,0.001]
[1736529954698,0.211974,94351.0,94333.0,0.006]
[1736529954902,0.1,94368.0,94338.0,0.212001]
[1736529955104,0.1,94368.0,94333.0,0.006]
[1736529955105,0.10429976,94367.0,94336.0,0.212006]
[1736529955303,0.211968,94354.0,94336.0,0.212006]
[1736529955688,0.211977,94350.0,94336.0,0.212006]
[1736529955919,0.211968,94354.0,94336.0,0.212006]
[1736529956322,0.423936,94354.0,94336.0,0.212006]
[1736529956486,0.211954,94361.0,94344.0,0.211988]
[1736529956859,0.10429976,94367.0,94332.0,1.5]
[1736529956860,0.10429976,94360.0,94346.0,0.211985]
[1736529957061,0.31625376,94360.0,94345.0,0.0787]
[1736529957456,0.211965,94356.0,94345.0,0.0787]
[1736529957662,0.211965,94355.0,94345.0,0.0787]
[1736529958434,0.211965,94355.0,94345.0,0.0797]
[1736529958634,0.211965,94355.0,94345.0,0.0787]
[1736529959106,0.211965,94355.0,94345.0,0.0827]
[1736529959324,0.00014506,94356.0,94345.0,0.0827]
[1736529959531,0.21210906,94356.0,94345.0,0.0827]
[1736529960252,0.00014506,94356.0,94345.0,0.0827]
[1736529960451,0.00014506,94356.0,94353.0,0.211969]
[1736529960666,0.211853,94405.0,94354.0,0.1267]
[1736529960667,0.1,94386.0,94354.0,0.1267]
[1736529960942,0.10429976,94382.0,94354.0,0.1267]
[1736529961110,0.211907,94381.0,94360.0,0.211953]
[1736529961331,0.10429976,94380.0,94361.0,0.08]
[1736529961938,0.211889,94389.0,94362.0,1.5]
[1736529962120,0.01060352,94383.0,94370.0,0.211931]
[1736529962295,8.53e-05,94383.0,94374.0,0.211922]
[1736529962497,8.53e-05,94383.0,94378.0,0.211911]
[1736529962746,8.53e-05,94383.0,94380.0,0.423817]
[1736529962946,8.53e-05,94383.0,94380.0,0.471517]
[1736529963121,8.53e-05,94383.0,94380.0,0.0477]
[1736529963328,8.53e-05,94383.0,94380.0,0.259607]
[1736529963732,8.53e-05,94383.0,94380.0,0.471515]
[1736529964157,8.53e-05,94383.0,94380.0,0.57581476]
[1736529964534,8.53e-05,94383.0,94382.0,0.211904]
[1736529964739,8.53e-05,94383.0,94382.0,0.31620376]
[1736529965646,8.53e-05,94383.0,94382.0,1.81620376]
[1736529966836,8.53e-05,94383.0,94382.0,0.220584]
[1736529966951,8.53e-05,94383.0,94382.0,0.211904]
[1736529967154,8.53e-05,94383.0,94382.0,0.218904]
[1736529967374,8.53e-05,94383.0,94382.0,0.227584]
[1736529967574,8.53e-05,94383.0,94382.0,0.32488376]
[1736529967860,8.53e-05,94383.0,94382.0,0.33388376]
[1736529968018,8.53e-05,94383.0,94382.0,0.33788376]
[1736529968199,8.53e-05,94383.0,94382.0,0.32888376]
[1736529968404,8.53e-05,94383.0,94382.0,0.33788376]
[1736529968798,8.53e-05,94383.0,94382.0,0.32888376]
[1736529969188,8.53e-05,94383.0,94382.0,0.33788376]
[1736529969391,8.53e-05,94383.0,94382.0,0.33388376]
[1736529969590,8.53e-05,94383.0,94382.0,1.83388376]
[1736529969841,8.53e-05,94383.0,94382.0,1.83888376]
[1736529970214,8.53e-05,94383.0,94382.0,1.83388376]
[1736529970638,8.53e-05,94383.0,94382.0,0.33120376]
[1736529970948,8.53e-05,94383.0,94382.0,0.33088376]
[1736529971196,8.53e-05,94383.0,94382.0,0.33988376]
[1736529971532,8.53e-05,94383.0,94382.0,0.33088376]
[1736529971935,8.53e-05,94383.0,94382.0,0.33988376]
[1736529972138,8.53e-05,94383.0,94382.0,0.41158376]
[1736529972548,8.53e-05,94383.0,94382.0,0.41458376]
[1736529972748,8.53e-05,94383.0,94382.0,0.40558376]
[1736529973073,8.53e-05,94383.0,94382.0,0.41158376]
[1736529973309,8.53e-05,94393.0,94382.0,0.41158376]
[1736529973310,8.53e-05,94393.0,94390.0,0.335586]
[1736529973512,0.00023033,94391.0,94390.0,0.43988576]
[1736529974696,0.00023033,94391.0,94390.0,0.44488576]
[1736529975029,0.00023033,94391.0,94390.0,0.45388576]
[1736529975347,0.00199163,94406.0,94405.0,0.211853]
[1736529975529,0.00199163,94406.0,94405.0,0.31615276]
[1736529976662,0.00199163,94406.0,94405.0,1.81615276]